[Event "*** Titled Tuesday 3|2 Blitz"]
[Site "Chess.com"]
[Date "2017.05.02"]
[Round "3"]
[White "Storne89"]
[Black "spectralsoul"]
[Result "1-0"]
[WhiteElo "2510"]
[BlackElo "2649"]
[TimeControl "180+2"]
[EndTime "13:33:32 PDT"]
[Termination "Storne89 won on time"]

1. e4 {[%clk 0:03:02]} 1... d6 {[%clk 0:03:01.2]} 2. d4 {[%clk 0:03:02.6]} 2...
Nf6 {[%clk 0:03:02.8]} 3. Nc3 {[%clk 0:03:03.7]} 3... g6 {[%clk 0:03:04.4]} 4.
Bg5 {[%clk 0:03:03.2]} 4... Bg7 {[%clk 0:03:04.6]} 5. Qd2 {[%clk 0:03:03.8]}
5... h6 {[%clk 0:03:04.1]} 6. Bh4 {[%clk 0:03:04.6]} 6... g5 {[%clk 0:03:05.1]}
7. Bg3 {[%clk 0:03:05.8]} 7... Nh5 {[%clk 0:03:06.6]} 8. Nge2 {[%clk 0:03:04.7]}
8... Nc6 {[%clk 0:02:57.6]} 9. O-O-O {[%clk 0:03:04.3]} 9... Nxg3 {[%clk
0:02:54.2]} 10. hxg3 {[%clk 0:03:03.7]} 10... e5 {[%clk 0:02:27.3]} 11. dxe5
{[%clk 0:02:47]} 11... Nxe5 {[%clk 0:02:22.6]} 12. Nd4 {[%clk 0:02:44.1]} 12...
Nc6 {[%clk 0:01:59.4]} 13. Nxc6 {[%clk 0:01:39.5]} 13... bxc6 {[%clk 0:02:01.3]}
14. f4 {[%clk 0:01:41]} 14... Rb8 {[%clk 0:01:58.9]} 15. Bc4 {[%clk 0:01:41]}
15... Bg4 {[%clk 0:01:52]} 16. Rde1 {[%clk 0:01:32.9]} 16... O-O {[%clk
0:01:50.3]} 17. Bb3 {[%clk 0:01:33.5]} 17... a5 {[%clk 0:01:48.8]} 18. a4 {[%clk
0:01:31.5]} 18... Be6 {[%clk 0:01:40.3]} 19. e5 {[%clk 0:01:09.7]} 19... Bxb3
{[%clk 0:01:35.3]} 20. cxb3 {[%clk 0:01:10.9]} 20... Rxb3 {[%clk 0:01:20.1]} 21.
Qc2 {[%clk 0:01:11.8]} 21... Rb4 {[%clk 0:01:16.3]} 22. Ne4 {[%clk 0:01:10.6]}
22... d5 {[%clk 0:00:57.6]} 23. Nf6+ {[%clk 0:00:30.8]} 23... Bxf6 {[%clk
0:00:54.8]} 24. Rxh6 {[%clk 0:00:32.4]} 24... Rc4 {[%clk 0:00:54.9]} 25. exf6
{[%clk 0:00:33.8]} 25... Re8 {[%clk 0:00:12.3]} 26. Reh1 {[%clk 0:00:31.8]}
26... Re1+ {[%clk 0:00:06.4]} 27. Rxe1 {[%clk 0:00:32.8]} 27... Rxc2+ {[%clk
0:00:07.7]} 28. Kxc2 {[%clk 0:00:34]} 28... gxf4 {[%clk 0:00:03.3]} 29. Reh1
{[%clk 0:00:31.3]} 1-0

[Event "*** Titled Tuesday 3|2 Blitz"]
[Site "Chess.com"]
[Date "2017.05.02"]
[Round "3"]
[White "rubhani"]
[Black "IIIlllII1llIl"]
[Result "0-1"]
[WhiteElo "2391"]
[BlackElo "2557"]
[TimeControl "180+2"]
[EndTime "13:33:35 PDT"]
[Termination "IIIlllII1llIl won by resignation"]

1. e4 {[%clk 0:02:59.7]} 1... e5 {[%clk 0:02:57]} 2. Nf3 {[%clk 0:02:59.4]} 2...
Nc6 {[%clk 0:02:58.2]} 3. Bb5 {[%clk 0:02:56.7]} 3... Nf6 {[%clk 0:02:58.1]} 4.
d3 {[%clk 0:02:57.2]} 4... d6 {[%clk 0:02:58.8]} 5. c3 {[%clk 0:02:54.4]} 5...
Be7 {[%clk 0:02:59.6]} 6. O-O {[%clk 0:02:55.5]} 6... O-O {[%clk 0:03:00.4]} 7.
Re1 {[%clk 0:02:56.8]} 7... a6 {[%clk 0:03:00]} 8. Ba4 {[%clk 0:02:57.4]} 8...
b5 {[%clk 0:03:00.9]} 9. Bc2 {[%clk 0:02:57.2]} 9... Re8 {[%clk 0:03:00.7]} 10.
Nbd2 {[%clk 0:02:58.2]} 10... Bf8 {[%clk 0:02:58.5]} 11. Nf1 {[%clk 0:02:59]}
11... h6 {[%clk 0:02:57]} 12. Ng3 {[%clk 0:03:00]} 12... g6 {[%clk 0:02:54.6]}
13. a3 {[%clk 0:03:00.9]} 13... Bg7 {[%clk 0:02:52.8]} 14. d4 {[%clk 0:03:00.4]}
14... exd4 {[%clk 0:02:30.3]} 15. Nxd4 {[%clk 0:02:34.2]} 15... Na5 {[%clk
0:02:13.9]} 16. h3 {[%clk 0:02:23.9]} 16... Bb7 {[%clk 0:01:59.9]} 17. Bf4
{[%clk 0:02:11.7]} 17... c5 {[%clk 0:01:51.8]} 18. Nf3 {[%clk 0:02:10.2]} 18...
Re6 {[%clk 0:01:23.7]} 19. Nd2 {[%clk 0:00:52.8]} 19... d5 {[%clk 0:01:06.9]}
20. b4 {[%clk 0:00:40.1]} 20... cxb4 {[%clk 0:00:38.7]} 21. axb4 {[%clk
0:00:34.2]} 21... Nc4 {[%clk 0:00:39.8]} 22. Nxc4 {[%clk 0:00:15.1]} 22... dxc4
{[%clk 0:00:41.7]} 23. f3 {[%clk 0:00:14]} 23... Nd7 {[%clk 0:00:34.8]} 24. Qd2
{[%clk 0:00:14.1]} 24... Ne5 {[%clk 0:00:34.9]} 25. Kh2 {[%clk 0:00:13.9]} 25...
Qxd2 {[%clk 0:00:31.8]} 26. Bxd2 {[%clk 0:00:14.9]} 26... Rd8 {[%clk 0:00:33.4]}
27. Re2 {[%clk 0:00:16.3]} 27... Nd3 {[%clk 0:00:25.8]} 28. Nf1 {[%clk
0:00:17.5]} 28... Nxb4 {[%clk 0:00:25]} 29. Rc1 {[%clk 0:00:16.6]} 29... Na2
{[%clk 0:00:21.4]} 30. Rd1 {[%clk 0:00:14.9]} 30... Nxc3 {[%clk 0:00:18.2]} 0-1

[Event "*** Titled Tuesday 3|2 Blitz"]
[Site "Chess.com"]
[Date "2017.05.02"]
[Round "3"]
[White "Sinquefield"]
[Black "JSMastropiero"]
[Result "1-0"]
[WhiteElo "2196"]
[BlackElo "2211"]
[TimeControl "180+2"]
[EndTime "13:33:36 PDT"]
[Termination "Sinquefield won by resignation"]

1. d4 {[%clk 0:02:42.8]} 1... e6 {[%clk 0:02:59.4]} 2. Nf3 {[%clk 0:02:43.1]}
2... Nf6 {[%clk 0:02:57.5]} 3. Bg5 {[%clk 0:02:44.6]} 3... h6 {[%clk 0:02:51.7]}
4. Bh4 {[%clk 0:02:44.6]} 4... c5 {[%clk 0:02:50.1]} 5. e3 {[%clk 0:02:45.3]}
5... Be7 {[%clk 0:02:50.6]} 6. Nbd2 {[%clk 0:02:45.6]} 6... b6 {[%clk
0:02:50.3]} 7. Bd3 {[%clk 0:02:46.8]} 7... Bb7 {[%clk 0:02:47.6]} 8. c3 {[%clk
0:02:39.4]} 8... O-O {[%clk 0:02:39.8]} 9. O-O {[%clk 0:02:40]} 9... cxd4 {[%clk
0:02:36.6]} 10. exd4 {[%clk 0:02:40.2]} 10... Nc6 {[%clk 0:02:36.4]} 11. Re1
{[%clk 0:02:41.3]} 11... Nd5 {[%clk 0:02:35.2]} 12. Bxe7 {[%clk 0:02:32.3]}
12... Qxe7 {[%clk 0:02:20.7]} 13. Bf1 {[%clk 0:02:26.8]} 13... Nf4 {[%clk
0:01:57.6]} 14. g3 {[%clk 0:02:25.9]} 14... Ng6 {[%clk 0:01:50.3]} 15. Qe2
{[%clk 0:02:16.9]} 15... d5 {[%clk 0:01:49.8]} 16. Bg2 {[%clk 0:02:16.8]} 16...
Qd6 {[%clk 0:01:49.1]} 17. h4 {[%clk 0:02:17.1]} 17... Rfe8 {[%clk 0:01:45.9]}
18. h5 {[%clk 0:02:15.2]} 18... Nf8 {[%clk 0:01:46.8]} 19. Nf1 {[%clk
0:02:16.3]} 19... a5 {[%clk 0:01:33.9]} 20. N1h2 {[%clk 0:02:01.6]} 20... Ba6
{[%clk 0:01:30.2]} 21. Qe3 {[%clk 0:02:00.7]} 21... b5 {[%clk 0:01:27.5]} 22.
Ng4 {[%clk 0:02:00.6]} 22... Kh7 {[%clk 0:01:25.2]} 23. Nfe5 {[%clk 0:01:41.1]}
23... Nxe5 {[%clk 0:01:16.8]} 24. Nxe5 {[%clk 0:01:33.5]} 24... Ra7 {[%clk
0:01:16.5]} 25. Bf1 {[%clk 0:01:31.9]} 25... b4 {[%clk 0:01:12.2]} 26. Bxa6
{[%clk 0:01:25.6]} 26... Qxa6 {[%clk 0:01:14.1]} 27. Qf3 {[%clk 0:01:19]} 27...
Kg8 {[%clk 0:01:13.1]} 28. cxb4 {[%clk 0:01:08.7]} 28... axb4 {[%clk 0:01:12.9]}
29. a3 {[%clk 0:01:10.4]} 29... f6 {[%clk 0:00:55.1]} 30. Nd3 {[%clk 0:01:04.2]}
30... bxa3 {[%clk 0:00:52.6]} 31. Rxa3 {[%clk 0:01:04.4]} 31... Qb6 {[%clk
0:00:54.2]} 32. Rxa7 {[%clk 0:01:04.7]} 32... Qxa7 {[%clk 0:00:55]} 33. Nc5
{[%clk 0:01:06.3]} 33... Qa5 {[%clk 0:00:52]} 34. Re3 {[%clk 0:01:02.2]} 34...
Qd2 {[%clk 0:00:50.5]} 35. Qg4 {[%clk 0:00:57.2]} 35... Qxd4 {[%clk 0:00:32.3]}
36. Qxd4 {[%clk 0:00:57.9]} 1-0

[Event "*** Titled Tuesday 3|2 Blitz"]
[Site "Chess.com"]
[Date "2017.05.02"]
[Round "3"]
[White "sergiochess83"]
[Black "martinique24"]
[Result "1-0"]
[WhiteElo "2664"]
[BlackElo "2432"]
[TimeControl "180+2"]
[EndTime "13:34:09 PDT"]
[Termination "sergiochess83 won on time"]

1. e4 {[%clk 0:03:02]} 1... e6 {[%clk 0:02:53.7]} 2. d4 {[%clk 0:03:02.6]} 2...
d5 {[%clk 0:02:54.9]} 3. Nd2 {[%clk 0:03:04.5]} 3... Nf6 {[%clk 0:02:51.9]} 4.
e5 {[%clk 0:03:05.4]} 4... Nfd7 {[%clk 0:02:52.9]} 5. Bd3 {[%clk 0:03:07]} 5...
c5 {[%clk 0:02:53.9]} 6. c3 {[%clk 0:03:07]} 6... Nc6 {[%clk 0:02:55]} 7. Ndf3
{[%clk 0:03:08]} 7... cxd4 {[%clk 0:02:49.7]} 8. cxd4 {[%clk 0:03:09.2]} 8...
Qa5+ {[%clk 0:02:51.4]} 9. Kf1 {[%clk 0:03:09.5]} 9... f6 {[%clk 0:02:45.3]} 10.
exf6 {[%clk 0:03:10]} 10... Nxf6 {[%clk 0:02:46.4]} 11. Nh3 {[%clk 0:03:04.7]}
11... Qb6 {[%clk 0:02:23.4]} 12. Nf4 {[%clk 0:02:55.5]} 12... Bd7 {[%clk
0:02:00.6]} 13. g3 {[%clk 0:02:51.5]} 13... Bd6 {[%clk 0:01:40.1]} 14. Kg2
{[%clk 0:02:52.2]} 14... O-O {[%clk 0:01:40.4]} 15. Re1 {[%clk 0:02:52.1]} 15...
Rae8 {[%clk 0:01:39.8]} 16. a3 {[%clk 0:02:46.2]} 16... e5 {[%clk 0:01:20.8]}
17. dxe5 {[%clk 0:02:04.8]} 17... Nxe5 {[%clk 0:01:21.1]} 18. Be3 {[%clk
0:02:05]} 18... Qd8 {[%clk 0:00:39.5]} 19. Nxe5 {[%clk 0:02:00.3]} 19... Bxe5
{[%clk 0:00:40.6]} 20. Qb3 {[%clk 0:02:01.7]} 20... Kh8 {[%clk 0:00:27.7]} 21.
Rad1 {[%clk 0:01:50.2]} 21... d4 {[%clk 0:00:22.9]} 22. Bc1 {[%clk 0:01:50.9]}
22... Bc6+ {[%clk 0:00:24.4]} 23. Kg1 {[%clk 0:01:52.2]} 23... Nd5 {[%clk
0:00:16.9]} 24. Nxd5 {[%clk 0:01:35.2]} 24... Bxd5 {[%clk 0:00:18.8]} 25. Bc4
{[%clk 0:01:28.1]} 25... Bf3 {[%clk 0:00:19.7]} 26. Rd3 {[%clk 0:01:24.2]} 26...
Qf6 {[%clk 0:00:21]} 27. Bg5 {[%clk 0:01:15.1]} 27... Qf5 {[%clk 0:00:19]} 28.
Bf4 {[%clk 0:01:14]} 28... Bc6 {[%clk 0:00:17.1]} 29. Bd5 {[%clk 0:00:14.9]}
29... Bxf4 {[%clk 0:00:11.9]} 30. Rxe8 {[%clk 0:00:15.7]} 30... Rxe8 {[%clk
0:00:10]} 31. Bxc6 {[%clk 0:00:16.5]} 31... Qh3 {[%clk 0:00:08.3]} 32. Bxe8
{[%clk 0:00:07.3]} 1-0

[Event "*** Titled Tuesday 3|2 Blitz"]
[Site "Chess.com"]
[Date "2017.05.02"]
[Round "3"]
[White "Msb2"]
[Black "vpantev"]
[Result "0-1"]
[WhiteElo "2549"]
[BlackElo "2464"]
[TimeControl "180+2"]
[EndTime "13:34:17 PDT"]
[Termination "vpantev won by resignation"]

1. d4 {[%clk 0:03:02]} 1... Nf6 {[%clk 0:02:57.5]} 2. c4 {[%clk 0:03:01.5]} 2...
e6 {[%clk 0:02:58.4]} 3. Nf3 {[%clk 0:03:01.3]} 3... Bb4+ {[%clk 0:02:58.2]} 4.
Nbd2 {[%clk 0:03:02.1]} 4... O-O {[%clk 0:02:58]} 5. a3 {[%clk 0:03:03.3]} 5...
Bxd2+ {[%clk 0:02:58.4]} 6. Bxd2 {[%clk 0:03:05.2]} 6... h6 {[%clk 0:02:59]} 7.
g3 {[%clk 0:03:01.6]} 7... b6 {[%clk 0:02:59.9]} 8. Bg2 {[%clk 0:03:02.8]} 8...
Bb7 {[%clk 0:03:01.6]} 9. O-O {[%clk 0:03:04.4]} 9... d6 {[%clk 0:03:02.8]} 10.
Qc2 {[%clk 0:03:03.1]} 10... Nbd7 {[%clk 0:03:03.1]} 11. b3 {[%clk 0:03:04.1]}
11... Qe7 {[%clk 0:03:02.9]} 12. Bc3 {[%clk 0:03:05.2]} 12... Rac8 {[%clk
0:03:03.2]} 13. Rfe1 {[%clk 0:03:06.1]} 13... Be4 {[%clk 0:03:03]} 14. Qd1
{[%clk 0:03:05.6]} 14... c5 {[%clk 0:03:04]} 15. Bf1 {[%clk 0:03:05.8]} 15... d5
{[%clk 0:03:05]} 16. Nd2 {[%clk 0:03:05.2]} 16... Bf5 {[%clk 0:03:04.9]} 17.
dxc5 {[%clk 0:02:55.8]} 17... Nxc5 {[%clk 0:03:04.7]} 18. Bxf6 {[%clk
0:02:55.6]} 18... Qxf6 {[%clk 0:03:05]} 19. cxd5 {[%clk 0:02:57.5]} 19... exd5
{[%clk 0:03:04.1]} 20. Bg2 {[%clk 0:02:56.2]} 20... Rfd8 {[%clk 0:03:03.6]} 21.
Rc1 {[%clk 0:02:37.2]} 21... d4 {[%clk 0:02:54]} 22. b4 {[%clk 0:02:34.4]} 22...
Ne6 {[%clk 0:02:54.6]} 23. Qa4 {[%clk 0:02:15.7]} 23... Qe7 {[%clk 0:02:54.9]}
24. Qa6 {[%clk 0:02:06]} 24... Rc3 {[%clk 0:02:55.2]} 25. Ne4 {[%clk 0:01:58.6]}
25... Bxe4 {[%clk 0:02:55.3]} 26. Bxe4 {[%clk 0:01:59.1]} 26... Qc7 {[%clk
0:02:54.3]} 27. Rcd1 {[%clk 0:01:48]} 27... g5 {[%clk 0:02:53.8]} 28. Bf5 {[%clk
0:01:46]} 28... Ng7 {[%clk 0:02:50.4]} 29. Bd3 {[%clk 0:01:41.4]} 29... h5
{[%clk 0:02:47.3]} 30. a4 {[%clk 0:01:41.8]} 30... h4 {[%clk 0:02:47]} 31. a5
{[%clk 0:01:41.2]} 31... h3 {[%clk 0:02:42.6]} 32. Qb5 {[%clk 0:01:31.7]} 32...
Qb7 {[%clk 0:02:33.8]} 33. f3 {[%clk 0:01:32.9]} 33... g4 {[%clk 0:02:34.7]} 34.
Be4 {[%clk 0:01:30.4]} 34... Qd7 {[%clk 0:02:30.4]} 35. Qxd7 {[%clk 0:01:29]}
35... Rxd7 {[%clk 0:02:31.3]} 36. axb6 {[%clk 0:01:29.6]} 36... axb6 {[%clk
0:02:31.9]} 37. fxg4 {[%clk 0:01:30.8]} 37... Ne6 {[%clk 0:02:24.6]} 38. Bf5
{[%clk 0:01:29.7]} 38... Rd5 {[%clk 0:02:25.1]} 39. Bd3 {[%clk 0:01:05.4]} 39...
Kg7 {[%clk 0:02:21.8]} 40. Ra1 {[%clk 0:01:03.9]} 40... Re5 {[%clk 0:02:15.7]}
41. Rec1 {[%clk 0:00:56.8]} 41... Kf6 {[%clk 0:02:07.4]} 42. Kf2 {[%clk
0:00:36]} 42... Rb3 {[%clk 0:02:05.2]} 43. Rcb1 {[%clk 0:00:36]} 43... Rc3
{[%clk 0:02:06]} 44. Ra7 {[%clk 0:00:35.9]} 44... Ng5 {[%clk 0:02:06.1]} 45. Rb7
{[%clk 0:00:32]} 45... Ne4+ {[%clk 0:02:06.4]} 46. Bxe4 {[%clk 0:00:33.2]} 46...
Rxe4 {[%clk 0:02:07.6]} 47. Rxb6+ {[%clk 0:00:34.8]} 47... Kg7 {[%clk
0:02:08.2]} 48. Rb2 {[%clk 0:00:36]} 48... Rc1 {[%clk 0:02:07.1]} 49. Kf3 {[%clk
0:00:16.9]} 49... Re3+ {[%clk 0:02:05.1]} 50. Kf4 {[%clk 0:00:18.4]} 50... Rh1
{[%clk 0:01:52.5]} 51. Rd6 {[%clk 0:00:19.4]} 51... Rxh2 {[%clk 0:01:51.3]} 52.
Rxd4 {[%clk 0:00:20.5]} 52... Re6 {[%clk 0:01:52.3]} 53. b5 {[%clk 0:00:17.3]}
53... Rg2 {[%clk 0:01:49.8]} 54. Kf3 {[%clk 0:00:10.2]} 54... Rg1 {[%clk
0:01:49]} 55. e4 {[%clk 0:00:10]} 55... Rf6+ {[%clk 0:01:47.5]} 56. Ke3 {[%clk
0:00:10.7]} 56... Rxg3+ {[%clk 0:01:48.7]} 57. Kd2 {[%clk 0:00:12]} 57... Rg2+
{[%clk 0:01:49.2]} 58. Kc3 {[%clk 0:00:13.1]} 58... Rf3+ {[%clk 0:01:50]} 0-1

[Event "*** Titled Tuesday 3|2 Blitz"]
[Site "Chess.com"]
[Date "2017.05.02"]
[Round "3"]
[White "Cayse"]
[Black "Michelangelo"]
[Result "0-1"]
[WhiteElo "2652"]
[BlackElo "2608"]
[TimeControl "180+2"]
[EndTime "13:34:25 PDT"]
[Termination "Michelangelo won by resignation"]

1. e4 {[%clk 0:03:02]} 1... e5 {[%clk 0:02:57.9]} 2. Nf3 {[%clk 0:03:02.5]} 2...
Nc6 {[%clk 0:02:58.4]} 3. Bc4 {[%clk 0:02:59.4]} 3... Bc5 {[%clk 0:02:55.4]} 4.
c3 {[%clk 0:02:59.5]} 4... Nf6 {[%clk 0:02:55.8]} 5. d4 {[%clk 0:03:00.5]} 5...
exd4 {[%clk 0:02:56.6]} 6. e5 {[%clk 0:03:01.7]} 6... d5 {[%clk 0:02:56.7]} 7.
Bb5 {[%clk 0:03:02.9]} 7... Ne4 {[%clk 0:02:57.7]} 8. cxd4 {[%clk 0:03:03.9]}
8... Bb6 {[%clk 0:02:55.4]} 9. Nc3 {[%clk 0:03:04.2]} 9... O-O {[%clk
0:02:50.4]} 10. Be3 {[%clk 0:03:04]} 10... Bf5 {[%clk 0:02:27.6]} 11. O-O {[%clk
0:02:43.7]} 11... Kh8 {[%clk 0:02:26]} 12. Bxc6 {[%clk 0:02:40.3]} 12... bxc6
{[%clk 0:02:27]} 13. Rc1 {[%clk 0:02:40.1]} 13... f6 {[%clk 0:02:21.9]} 14. h3
{[%clk 0:01:29.2]} 14... Qd7 {[%clk 0:01:39.2]} 15. exf6 {[%clk 0:01:26.5]}
15... gxf6 {[%clk 0:01:39.3]} 16. Nxe4 {[%clk 0:01:19.8]} 16... Bxe4 {[%clk
0:01:39.8]} 17. Nd2 {[%clk 0:01:17]} 17... Rae8 {[%clk 0:01:01.7]} 18. Re1
{[%clk 0:01:04]} 18... f5 {[%clk 0:00:36.4]} 19. Bf4 {[%clk 0:01:03.4]} 19...
Bxd4 {[%clk 0:00:21.4]} 20. Nxe4 {[%clk 0:01:03.1]} 20... dxe4 {[%clk
0:00:18.9]} 21. Rc4 {[%clk 0:00:57.3]} 21... c5 {[%clk 0:00:19.7]} 22. Rxc5
{[%clk 0:00:58.2]} 22... Rd8 {[%clk 0:00:10]} 23. Rxc7 {[%clk 0:00:48.8]} 23...
Qe6 {[%clk 0:00:11.2]} 24. Qe2 {[%clk 0:00:33.7]} 24... Qg6 {[%clk 0:00:09.9]}
25. Rd1 {[%clk 0:00:27.9]} 25... Rg8 {[%clk 0:00:10]} 26. g3 {[%clk 0:00:29]}
26... Qf6 {[%clk 0:00:11.6]} 27. Kg2 {[%clk 0:00:27.8]} 27... Bb6 {[%clk
0:00:04.9]} 28. Rcd7 {[%clk 0:00:24.3]} 28... Rxd7 {[%clk 0:00:05.7]} 29. Rxd7
{[%clk 0:00:26]} 29... Re8 {[%clk 0:00:06.2]} 30. b4 {[%clk 0:00:22.8]} 30... e3
{[%clk 0:00:06.5]} 31. fxe3 {[%clk 0:00:22.9]} 31... Qc6+ {[%clk 0:00:07.4]} 32.
Kh2 {[%clk 0:00:21]} 32... Qxd7 {[%clk 0:00:08.9]} 33. h4 {[%clk 0:00:18.7]}
33... Qe6 {[%clk 0:00:10]} 34. Qb2+ {[%clk 0:00:17.7]} 34... Kg8 {[%clk
0:00:11.2]} 35. Bh6 {[%clk 0:00:18.5]} 35... Qe5 {[%clk 0:00:11.2]} 36. Qb3+
{[%clk 0:00:19.6]} 36... Re6 {[%clk 0:00:12.8]} 37. Qc4 {[%clk 0:00:20]} 37...
Kf7 {[%clk 0:00:12.3]} 38. Qc8 {[%clk 0:00:19.7]} 38... Rxh6 {[%clk 0:00:12.4]}
0-1

[Event "*** Titled Tuesday 3|2 Blitz"]
[Site "Chess.com"]
[Date "2017.05.02"]
[Round "3"]
[White "PaulfromSPb"]
[Black "severomorskij"]
[Result "0-1"]
[WhiteElo "2567"]
[BlackElo "2692"]
[TimeControl "180+2"]
[EndTime "13:34:28 PDT"]
[Termination "severomorskij won by resignation"]

1. e4 {[%clk 0:03:02]} 1... c5 {[%clk 0:03:00.2]} 2. Ne2 {[%clk 0:03:01.9]} 2...
Nc6 {[%clk 0:02:59.2]} 3. d4 {[%clk 0:03:02]} 3... cxd4 {[%clk 0:03:00.1]} 4.
Nxd4 {[%clk 0:03:03.2]} 4... e5 {[%clk 0:03:01.1]} 5. Nb5 {[%clk 0:03:03.9]}
5... d6 {[%clk 0:03:02.4]} 6. N1c3 {[%clk 0:03:03.3]} 6... a6 {[%clk 0:03:02.6]}
7. Na3 {[%clk 0:03:04.1]} 7... Be7 {[%clk 0:03:04.2]} 8. Nd5 {[%clk 0:03:05]}
8... Nf6 {[%clk 0:03:04.5]} 9. Nxf6+ {[%clk 0:03:04.8]} 9... Bxf6 {[%clk
0:03:05.6]} 10. Nc4 {[%clk 0:03:05.6]} 10... Be7 {[%clk 0:03:06.7]} 11. Be3
{[%clk 0:03:06.5]} 11... O-O {[%clk 0:03:03]} 12. Nb6 {[%clk 0:03:04.4]} 12...
Rb8 {[%clk 0:03:03.7]} 13. Bc4 {[%clk 0:03:05.3]} 13... Be6 {[%clk 0:03:00.7]}
14. Bd5 {[%clk 0:02:55.4]} 14... Bg5 {[%clk 0:03:00.1]} 15. Nc4 {[%clk
0:02:47.6]} 15... Bxd5 {[%clk 0:02:49.6]} 16. Qxd5 {[%clk 0:02:47]} 16... Bxe3
{[%clk 0:02:47.2]} 17. Nxe3 {[%clk 0:02:47.6]} 17... Ne7 {[%clk 0:02:32.1]} 18.
Qd3 {[%clk 0:02:41.1]} 18... Qa5+ {[%clk 0:02:29.6]} 19. c3 {[%clk 0:02:41.1]}
19... Rbd8 {[%clk 0:02:30.1]} 20. O-O {[%clk 0:02:41.3]} 20... d5 {[%clk
0:02:29.6]} 21. exd5 {[%clk 0:02:38.8]} 21... Nxd5 {[%clk 0:02:27]} 22. Nxd5
{[%clk 0:02:39.5]} 22... Qxd5 {[%clk 0:02:26.5]} 23. Qe2 {[%clk 0:02:36.6]}
23... f6 {[%clk 0:02:05.8]} 24. Rfd1 {[%clk 0:02:36.4]} 24... Qe6 {[%clk
0:01:58.9]} 25. c4 {[%clk 0:02:25.3]} 25... e4 {[%clk 0:01:54.3]} 26. b3 {[%clk
0:02:13.7]} 26... f5 {[%clk 0:01:52.9]} 27. Rxd8 {[%clk 0:02:14]} 27... Rxd8
{[%clk 0:01:53.3]} 28. Rd1 {[%clk 0:02:14.9]} 28... Rd6 {[%clk 0:01:41.4]} 29.
g3 {[%clk 0:02:08.1]} 29... Qd7 {[%clk 0:01:40.5]} 30. Rxd6 {[%clk 0:02:06.6]}
30... Qxd6 {[%clk 0:01:41.9]} 31. h4 {[%clk 0:02:07.7]} 31... Qd4 {[%clk
0:01:36.4]} 32. Kg2 {[%clk 0:02:04.4]} 32... g6 {[%clk 0:01:36.5]} 33. Qe3
{[%clk 0:02:05.5]} 33... Qxe3 {[%clk 0:01:13.5]} 34. fxe3 {[%clk 0:02:06.2]}
34... h6 {[%clk 0:01:13.9]} 35. Kf2 {[%clk 0:01:59.6]} 35... Kf7 {[%clk
0:01:15]} 36. Ke2 {[%clk 0:01:56.6]} 36... Ke6 {[%clk 0:01:16.1]} 37. a3 {[%clk
0:01:47.5]} 37... g5 {[%clk 0:01:11.9]} 38. hxg5 {[%clk 0:01:45.5]} 38... hxg5
{[%clk 0:01:13.8]} 39. b4 {[%clk 0:01:38]} 39... Ke5 {[%clk 0:01:12.2]} 40. c5
{[%clk 0:01:19.6]} 40... Kd5 {[%clk 0:00:59]} 41. Kd2 {[%clk 0:01:20.2]} 41...
Kc4 {[%clk 0:00:58.2]} 42. Kc2 {[%clk 0:01:21]} 42... g4 {[%clk 0:00:36.6]} 43.
Kb2 {[%clk 0:01:13.1]} 43... Kd3 {[%clk 0:00:37.6]} 44. Kb3 {[%clk 0:01:02.2]}
44... f4 {[%clk 0:00:35.8]} 0-1